Cogmind - Beta 17.1 @@@ ROGUE MODE // 2026.09.21 @ 21:38:07 Player: Quad (phone) Result: Destroyed by 8D-7NT(j) with Overtuned Pulse Rifle Performance ------------- Evolutions (0) 0 Regions Visited (3) 600 Robots Destroyed (18) 90 Value Destroyed (540) 540 Prototype IDs (1) 20 Alien Tech Used (0) 0 Bonus (631) 631 TOTAL SCORE: 1881 Bonus ------- Registered with UFD 300 Met Optimus in HQ 500 Friendly Fire -169 Cogmind --------- Core Integrity 0/250 Matter 177/300 Energy 88/100 System Corruption 0% Temperature Cool (24) Movement Walking (90) Location -8/Scraptown Parts ------- > --- POWER (1) -------- (None) > --- PROPULSION (2) --- VSS Leg VSS Leg > --- UTILITY (2) ------ Improved Terrain Scanner Surveybot 17 Chip > --- WEAPON (2) ------- Mace > --- INVENTORY (5) ---- Improved Deuterium Engine Aluminum Leg Advanced ECM Suite EM Pulse Gun Peak State ------------ > --- POWER ------------ Improved Deuterium Engine > --- PROPULSION ------- VSS Leg VSS Leg > --- UTILITY ---------- Improved Terrain Scanner Surveybot 17 Chip > --- WEAPON ----------- Long-range Missile Launcher Companion Sword > --- INVENTORY -------- Improved Deuterium Engine Aluminum Leg Advanced ECM Suite EM Pulse Gun Mace [Rating: 32] Favorites ----------- Power Ion Engine Engine Ion Engine Propulsion Aluminum Leg Treads Overtuned Treads Leg Aluminum Leg Utility Small Storage Unit Device Improved Terrain Scanner Storage Small Storage Unit Processor Surveybot 17 Chip Weapon EM Pulse Gun Energy Gun EM Pulse Gun Ballistic Gun Overtuned Barrage Gun Launcher Long-range Missile Launcher Impact Weapon Mace Slashing Weapon Companion Sword Build | -11 -10 -10 -8 ------- Run | Yrd Mat Sub Scr Slots Evolved . | . . . . Power . | . . . . Propulsion . | . . . . Utility . | . . . . Weapon . | . . . . Parts Attached 28 | 6 6 . 16 Power 5 | 2 . . 3 Engine 5 | 2 . . 3 Core . | . . . . Reactor . | . . . . Propulsion 10 | 2 3 . 5 Treads 1 | . . . 1 Leg 9 | 2 3 . 4 Wheel . | . . . . Hover . | . . . . Flight . | . . . . Utility 6 | . 3 . 3 Device 1 | . . . 1 Storage 2 | . 2 . . Processor 3 | . 1 . 2 Hackware . | . . . . Protection . | . . . . Artifact . | . . . . Weapon 7 | 2 . . 5 Energy Gun 2 | 2 . . . Energy Cannon . | . . . . Ballistic Gun 2 | . . . 2 Ballistic Cannon . | . . . . Launcher 1 | . . . 1 Special Weapon . | . . . . Impact Weapon 1 | . . . 1 Slashing Weapon 1 | . . . 1 Piercing Weapon . | . . . . Special Melee Weapon . | . . . . Unidentified Prototypes 1 | . . . 1 Parts Lost 2 | . . . 2 Power 1 | . . . 1 Propulsion . | . . . . Utility . | . . . . Weapon 1 | . . . 1 Highest Loss Streak 1 | . . . 1 To Critical Strikes . | . . . . Average Backups 5 | . 5 7 5 Power 1 | . 1 2 . Propulsion 1 | . 2 2 1 Utility 1 | . . 1 1 Weapon 1 | . 1 1 1 Tool/Special . | . . . . Unused Backups 9 | . . 1 8 Power 1 | . . . 1 Propulsion 2 | . . 1 1 Utility 2 | . . . 2 Weapon 2 | . . . 2 Tool/Special 2 | . . . 2 Average Slot Usage (%) 97 | . 87 100 99 Engine 13 | . 14 14 13 Leg 27 | . 28 28 27 Device 9 | . . . 12 Storage 11 | . 13 14 10 Processor 5 | . 3 14 5 Energy Gun 24 | . 28 28 23 Launcher 2 | . . . 2 Peak Build Rating 32 | 5 7 8 32 Average Rating 12 | 3 6 7 14 On Entrance 5 | . 5 7 8 Avg Prop Armor Cover (%) . | . . . . Naked Turns . | . . . . Heaviest Build 23 | 9 18 14 23 Greatest Support 39 | 20 20 20 39 Greatest Overweight (x) 1 | . . . 1 Average Overweight (x) . | . . . . Largest Inventory Capacity 8 | 5 8 8 8 Average Capacity 7 | 5 7 8 7 Most Carried 8 | 3 8 8 8 Average Carried 6 | . 5 7 6 Final Capacity 8 | 5 8 8 5 Final Carried 8 | 3 8 8 4 Class Distribution -------------------- 97% | Mutant Dominant Class ---------------- Mutant | -10/Materials Mutant | -10/Subcaves Mutant | -8/Scraptown Resources | -11 -10 -10 -8 ----------- Run | Yrd Mat Sub Scr Matter Collected 583 | 260 30 30 263 Remotely . | . . . . Salvage Created 751 | 38 186 . 527 Parts 40 | 4 13 . 23 Haulers Intercepted 1 | . 1 . . Recyclers Shooed 1 | . 1 . . Parts Field Recycled . | . . . . Retrieved Matter . | . . . . Parts Self-Destructed . | . . . . Prevented . | . . . . Parts Restored . | . . . . Kills | -11 -10 -10 -8 ------- Run | Yrd Mat Sub Scr Combat Hostiles Destroyed 15 | 1 4 . 10 Melee 2 | . . . 2 Guns 5 | 1 3 . 1 AOE 8 | . 1 . 7 Classes Destroyed 7 | 1 3 . 3 Worker 1 | . 1 . . Hauler 1 | . 1 . . Swarmer 3 | . 3 . . Grunt 2 | 1 1 . . Federalist 2 | . . . 2 Explorer 2 | . . . 2 Scrapper 6 | . . . 6 Thug 1 | . . . 1 Best Kill Streak 7 | 1 2 . 7 Combat Bots Only 7 | 1 2 . 7 Max Kills in Single Turn 2 | 1 1 . 2 Gunslinging . | . . . . Exploded 1 | . 1 . 1 Melee 1 | . . . 1 Uniques/NPCs Destroyed . | . . . . Combat | -11 -10 -10 -8 -------- Run | Yrd Mat Sub Scr Hostile Shots Fired 60 | 5 9 . 46 Missed 16 | 3 3 . 10 Hits 44 | 2 6 . 36 Projectile 44 | 2 6 . 36 Critical Strikes 6 | . . . 6 Damage Taken 788 | 22 93 . 673 Core 256 | 11 . . 245 Absorbed by Shields . | . . . . Core Remaining (%) 95 | 95 . . . Volleys Fired 33 | 4 17 . 12 Largest 2 | 2 2 . 2 Hottest 80 | 80 80 . 73 Shots Fired 63 | 8 34 . 21 Gun 51 | 8 34 . 9 Cannon . | . . . . Launcher 12 | . . . 12 Special . | . . . . Kinetic 9 | . . . 9 Thermal . | . . . . Explosive 12 | . . . 12 Electromagnetic 42 | 8 34 . . Robot Hit Streak 5 | 2 4 . 5 Robot Miss Streak 4 | 2 4 . 4 Penetration Max . | . . . . Secondary Targets 1 | . 1 . . Max Gunslinging Chain 1 | . 1 . . Shots Hit Robots 41 | 4 16 . 21 Core Hits 29 | 2 8 . 19 Critical Kills . | . . . . Critical Parts Destroyed . | . . . . Critical Strikes 1 | . 1 . . Corrupt 1 | . 1 . . Melee Attacks 10 | . . . 10 Impact 2 | . . . 2 Slashing 8 | . . . 8 Piercing . | . . . . Sneak Attacks . | . . . . Combat Hostiles . | . . . . Follow-up Attacks 1 | . . . 1 Damage Inflicted 1976 | 66 280 . 1630 Guns 409 | 66 226 . 117 Cannons . | . . . . Explosions 1157 | . 54 . 1103 Melee 410 | . . . 410 Ramming . | . . . . Kinetic 117 | . . . 117 Thermal 54 | . 54 . . Explosive 1103 | . . . 1103 Electromagnetic 292 | 66 226 . . Impact 90 | . . . 90 Slashing 320 | . . . 320 Piercing . | . . . . Highest Corruption . | . . . . Average Corruption . | . . . . Corruption Purged . | . . . . Corruption Blocked . | . . . . Overload Shots . | . . . . Overflow Damage 75 | . . . 75 Projectiles . | . . . . Explosions 35 | . . . 35 Melee 40 | . . . 40 Knockbacks . | . . . . Impact . | . . . . Kinetic . | . . . . Secondary . | . . . . Self-Inflicted Damage 86 | . 39 . 47 Shots 2 | . 1 . 1 Rammed . | . . . . Targets Rammed . | . . . . Kicked . | . . . . Crushed . | . . . . Highest Temperature 179 | 84 108 . 179 Average Temperature 51 | 44 36 . 67 Received Heat Transfer 507 | 12 . . 495 Siege Activations . | . . . . Martial Activations . | . . . . Shielding Activations . | . . . . Robots Disrupted . | . . . . Combat Hostiles . | . . . . Robots Corrupted 1 | . 1 . . Combat Hostiles . | . . . . Parts Fried 2 | . 2 . . Impact Corruptions 1 | . . . 1 Robots Melted . | . . . . Combat Hostiles . | . . . . Parts Melted 3 | . . . 3 Heat Transferred 50 | . 50 . . Parts Sabotaged . | . . . . Parts Stolen . | . . . . Parts Stripped . | . . . . Power Chain Reactions 1 | . 1 . . Alert | -11 -10 -10 -8 ------- Run | Yrd Mat Sub Scr Maximum Alert Level . | . . . . Low Security (%) 100 | 100 100 . . Level 1 . | . . . . Level 2 . | . . . . Level 3 . | . . . . Level 4 . | . . . . Level 5 . | . . . . High Security . | . . . . Max Security . | . . . . Peak Influence 55 | 10 55 . . Initial 6 | . 6 . . Average 15 | 1 17 . . Influence Increases 148 | 20 128 . . Destroy 0b10 Robot/C 100 | 20 80 . . Destroy 0b10 Robot/NC 10 | . 10 . . Destroy Leader 12 | . 12 . . Successful Hack 6 | . 6 . . Destroy Structure 5 | . 5 . . Lose Combat Pursuer 15 | . 15 . . Influence Decreases 148 | 10 138 . . Entered New Map 4 | . 4 . . Time Decay 144 | 10 134 . . Squads Dispatched . | . . . . Investigation . | . . . . Extermination . | . . . . Reinforcement . | . . . . Assault . | . . . . Garrison . | . . . . Intercept . | . . . . Searches Triggered . | . . . . Construction Impeded . | . . . . Haulers Reinforced . | . . . . Active Scanning Responses . | . . . . Cargo Convoy Interrupts . | . . . . Stealth | -11 -10 -10 -8 --------- Run | Yrd Mat Sub Scr Distress Signals 2 | . 2 . . Communications Jammed . | . . . . Distress Signals . | . . . . Times Spotted 27 | 1 7 . 19 Peak Tracking Total 5 | 1 4 . 5 Tactical Retreats 1 | . 1 . . Traps | -11 -10 -10 -8 ------- Run | Yrd Mat Sub Scr Traps Triggered . | . . . . Indirectly . | . . . . Trap Hack Attempts . | . . . . Triggered . | . . . . Disarmed . | . . . . Reprogrammed . | . . . . Reused . | . . . . Traps Extracted . | . . . . Installed . | . . . . Triggered . | . . . . Machines | -11 -10 -10 -8 ---------- Run | Yrd Mat Sub Scr Machines Disabled 9 | . . . 9 Max in Single Turn 3 | . . . 3 Machines Repaired . | . . . . Machines Dismantled . | . . . . Machines Sabotaged . | . . . . Overloaded Fab Kills . | . . . . Hacking | -11 -10 -10 -8 --------- Run | Yrd Mat Sub Scr Machines Accessed 13 | . 5 . 8 Terminals 3 | . 3 . . Fabricators . | . . . . Repair Stations . | . . . . Recycling Units 2 | . 2 . . Scanalyzers . | . . . . Garrison Access . | . . . . Total Hacks 77 | . 14 . 63 Successful 71 | . 8 . 63 Failed 6 | . 6 . . Catastrophic 2 | . 2 . . Database Lockouts . | . . . . Manual 14 | . 13 . 1 Terminals 10 | . 10 . . Fabricators . | . . . . Repair Stations . | . . . . Recycling Units 4 | . 4 . . Scanalyzers . | . . . . Garrison Access . | . . . . Terminal Hacks 64 | . 1 . 63 Record 62 | . . . 62 Open Door 1 | . . . 1 Emergency Access Points 1 | . 1 . . Fabricator Hacks . | . . . . Repair Station Hacks . | . . . . Recycling Unit Hacks 2 | . 2 . . Report Inventory 2 | . 2 . . Scanalyzer . | . . . . Garrison Access Hacks . | . . . . Unauthorized Hacks 5 | . 5 . . Terminals 3 | . 3 . . Track 2 | . 2 . . Assimilate 1 | . 1 . . Fabricators . | . . . . Repair Stations . | . . . . Recycling Units 2 | . 2 . . Monitor 2 | . 2 . . Scanalyzers . | . . . . Garrison Access . | . . . . Data Cores Recovered . | . . . . Used . | . . . . Hacking Detections 3 | . 3 . . Full Trace Events . | . . . . Feedback Events . | . . . . Feedback Blocked . | . . . . Robot Schematics Acquired . | . . . . Robots Built . | . . . . Authchips . | . . . . Time . | . . . . Total Robot Build Rating . | . . . . Part Schematics Acquired . | . . . . Parts Built . | . . . . Authchips . | . . . . Time . | . . . . Total Part Build Rating . | . . . . Part Studies Acquired . | . . . . Parts Repaired . | . . . . Time . | . . . . Parts Recycled . | . . . . Recycled Matter . | . . . . Retrieved Matter . | . . . . Retrieved Components . | . . . . Parts Scanalyzed . | . . . . Part Schematics Acquired . | . . . . Parts Damaged . | . . . . Bothacking | -11 -10 -10 -8 ------------ Run | Yrd Mat Sub Scr Used RIF Installer . | . . . . Robots Hacked . | . . . . Non-combat . | . . . . Combat . | . . . . Robot Hacks Applied . | . . . . Relay Couplers Released . | . . . . Fabnet Peak Effective % . | . . . . Robots Rewired . | . . . . Allies Hacked . | . . . . Hacks Repelled . | . . . . Allies | -11 -10 -10 -8 -------- Run | Yrd Mat Sub Scr Total Allies 2 | . . . 2 Largest Group 1 | . . . 1 Highest-Rated Group 55 | . . . 55 Highest-Rated Ally 55 | . . . 55 Total Orders . | . . . . Ally Attacks 12 | . . . 12 Total Damage 357 | . . . 357 Kills 2 | . . . 2 Allies Corrupted . | . . . . Allies Melted 2 | . . . 2 Intel | -11 -10 -10 -8 ------- Run | Yrd Mat Sub Scr Active Infowar (turns) 1905 | . . . 1905 Terrain 1905 | . . . 1905 Robot Analysis Total . | . . . . Derelict Logs Recovered 1 | . . . 1 Drone Launches . | . . . . Drone Recoveries . | . . . . Exploration | -11 -10 -10 -8 ------------- Run | Yrd Mat Sub Scr Turns Passed 2849 | 97 451 132 2169 Spaces Moved 2037 | 73 254 109 1601 Core 19 | 19 . . . Treads 3 | . . . 3 Legs 2015 | 54 254 109 1598 Wheels . | . . . . Hover . | . . . . Flight . | . . . . Fastest Speed 50 | 50 120 120 90 Average Speed 119 | 101 120 120 120 Slowest Speed 200 | 120 120 120 200 Overloaded Moves . | . . . . Propulsion Burnouts . | . . . . Robots Hopped . | . . . . Potential Cave-ins . | . . . . Cave-ins Triggered . | . . . . Exploration Rate (%) 34 | 7 40 7 84 Regions Visited 3 Branch Regions 2 Pre-discovered Areas . | . . . . Known Exits Taken . | . . . . Unknown Exits Taken 3 | 1 1 1 . Scrap Searched 5 | . . . 5 Spaces Dug . | . . . . Terrain Destroyed 115 | . 5 . 110 Melee . | . . . . Projectile 2 | . . . 2 AOE 113 | . 5 . 108 Terrain Rammed . | . . . . Walls Destroyed . | . . . . Machines Disabled . | . . . . Actions | -11 -10 -10 -8 --------- Run | Yrd Mat Sub Scr Total 2382 | 84 363 111 1824 Wait 229 | . 84 . 145 Move 2034 | 72 253 108 1601 Hop . | . . . . Pick Up 15 | 2 3 1 9 Fast Attach 20 | 5 2 . 13 Attach 1 | . . . 1 Detach 1 | . . . 1 Swap 9 | 1 4 . 4 Drop 29 | . . 2 27 Fire 33 | 4 17 . 12 Melee 9 | . . . 9 Ram . | . . . . Kick . | . . . . Crush . | . . . . Escape Stasis . | . . . . Rewire 2 | . . . 2 Trap . | . . . . Miscellaneous . | . . . . Route ------- -11/Scrapyard -10/Materials (discovered 2 exits: [*Min] / [*Sub]) -10/Subcaves -8/Scraptown (discovered 2 exits: *Fac x2) History --------- Turn | Location | Event 2 | -11/Scrapyard | Met Revision 17 66 | -11/Scrapyard | Discovered new exit (range 8) 98 | -11/Scrapyard | Entered Materials 316 | -10/Materials | Build established: Mutant 318 | -10/Materials | Discovered new exit (range 15) 545 | -10/Materials | Discovered new exit (range 5) 549 | -10/Materials | Entered Subcaves 550 | -10/Subcaves | Approached by a straggling Scientist 674 | -10/Subcaves | Scientist uncovered a shortcut to Scraptown 681 | -10/Subcaves | Entered Scraptown 1139 | -8/Scraptown | Scanned Subdweller tech in exchange for log data 1142 | -8/Scraptown | Learned location of 1 exit from Upper Caves 1158 | -8/Scraptown | Discovered new exit (range 16) 1296 | -8/Scraptown | Visited Awakened 1341 | -8/Scraptown | Visited The Evicted 1446 | -8/Scraptown | Visited Red Mages 1493 | -8/Scraptown | Visited Comm Corps 1559 | -8/Scraptown | Visited UFD Registry 1559 | -8/Scraptown | Registered with UFD as "Beamcutter" 1610 | -8/Scraptown | Visited Shadow of the Wyrm 1734 | -8/Scraptown | Visited CPS Storage 1763 | -8/Scraptown | Visited Cyclists 1788 | -8/Scraptown | Entered Cyclist Reading Room 2253 | -8/Scraptown | Visited Cartography Club 2287 | -8/Scraptown | Found Surveybot 17 Chip 2342 | -8/Scraptown | Visited Botcube Research 2352 | -8/Scraptown | Botcube activated 2356 | -8/Scraptown | Found Botcube 2392 | -8/Scraptown | Visited LU-1G1's Boring Crew 2508 | -8/Scraptown | Met Optimus 2508 | -8/Scraptown | Accepted into 0bPrime 2594 | -8/Scraptown | Civil war broke out across Scraptown 2643 | -8/Scraptown | Botcube activated 2655 | -8/Scraptown | Botcube completed mutation into treaded form (unarmed) 2703 | -8/Scraptown | Lost 12 allies 2715 | -8/Scraptown | Visited Derelict Rescue Squad 2719 | -8/Scraptown | Destroyed 7 combat bots 2744 | -8/Scraptown | Found Prototype Slashing Weapon 2744 | -8/Scraptown | Identified Companion Sword 2752 | -8/Scraptown | Visited Sword Containment 2758 | -8/Scraptown | Identified exit to Factory 2773 | -8/Scraptown | Visited Observation Area 2799 | -8/Scraptown | Core integrity fell below 50% 2824 | -8/Scraptown | Visited Scrapoid Pod Storage 2845 | -8/Scraptown | Core integrity fell below 20% 2850 | -8/Scraptown | Destroyed by 8D-7NT(j) with Overtuned Pulse Rifle Last Messages --------------- 02819_ FD-GZH(j) heat damages Ovr. Titanium Leg, Ovr. Titanium Leg, Mak. Salvage Targeting Computer, Broken Mak. Microdissipator Network. 02823_ FD-GZH(j) heat damages Scrap Suit, Ovr. Titanium Leg. 02823_ FJ-EG7(j) suffers critical hit (Burn). 02823_ FJ-EG7(j) destroyed. 02830_ Lgt. Deuterium Engine melted. 02830_ FD-GZH(j) destroyed. 02841_ Mak. Salvage Targeting Computer melted. 02841_ PY-ECO(j) destroyed. 02845_ 8D-7NT(j): "I'm having second thoughts about this." 02846_ Companion Sword follow-up attack on 8D-7NT(j). 02849_ Imp. Deuterium Engine destroyed. 02849_ Critical hit (Burn: +50). 02849_ Dropped Companion Sword. Companion Sword: "Is this the end for us?" 02850_ Destroyed Mak. Salvage Targeting Computer. 02850_ 8D-7NT(j) system corrupted by crushing effect. Map ----- +----------------------------------------------------+ | ??#?###" "&& "## #?""""""??##??????????????????? | | " "##" "## #"""""""??###?#?##?#??????????? | | "###"" / ""# """"#?####?####?????????? | | " ###" % """?##?#?#########??????? | | ""###"" "" # """###?########??#?????? | | "##" " =! """###########???#?????? | | ""###"" ""# %%! """####?##########?????? | | " ### # [ """"##############??????? | | ""### [! # """#########?####??#???? | | "## ==!! # "########?####?#?????? | | ########### #### # ############?###???????? | | ########### ### ! ###############??##?##?? | | """! "" %% [!= [!%% * #### ####?#####?#?? | | !%= *=!%= !=! * !=%! # ## ####?#??###??? | | [=!%=%*[%=% == ! ## ########???#?? | | [%[![!!=[! %[ ## [ ####??#####?#? | | !=![!!% = = *=% ######?#?##### | | =* * [ !* X# #########?###? | | """ """ " = ## ## ########?????? | | """"""""""" *%[ ## ## ##########?##? | | ########### ## % = ""###### ########?##??? | | ########### [ #####################?#?#?? | | X"#### #### % ! "##"""""#""""######?#####??? | | " # ### !%[ "## "#" ""######?######?? | | " # #### =% "## "#" ""##########????? | | =%# ## ! = ##@ "#" "#######?#?##??? | | % !![ *%! %j! !"#" "######?#??????? | | *%%== = % ! "##= "#" "#######??#????? | | =![ ## #" % ## "#" "#######?#?????? | | !### #####"" ! "##"""" #" "######?#??????? | | # # ######"" ##################????????? | | X ##########"" "#################?????????? | | ##########"" "################?????????? | | ###############"" !%! "###############??????????? | | """"""""""""""""" =%!"# """""""""###??????????? | | """"""""""""""""" =! "####?????????? | | !!= ## """""" "##???#???????? | | *%!*!!"## " " "##???????????? | | =[!!!!"## " " "####?????????? | | !=%%## " " "##???????????? | | [[=!!# """""" ?#????????????? | | " """"""""""" """"""[[%## " ?###??????????? | | # ########### ######%!=## """"""""""##???????????? | | ###"""""""""##=*%"############?#???????????? | | # ### ##[*["#############????????????? | | # ###" ##!%!"#######?#????#???????????? | | # ###" """ ## !=" ########?##?????????????? | | ##### ### "" ##==%#########?#???????????????? | | ### """ ##! ######?#?##???????????????? | | """ # ### """ ## ? ???????????????? | +----------------------------------------------------+ Best States ------------- Heat Dissipation 25 Energy Generation 18 Energy Capacity 500 Matter Stores 300 Matter Capacity 300 Sight Range 16 Terrain Scan Range 16 Terrain Scan Density 1210 Evasion (%) 57 Targeting Accuracy 6 Recoil Reduction 1 Item Schematics ----------------- None Robot Schematics ------------------ None Fabricated ------------ Nothing Repaired ---------- Nothing Studied --------- None Alien Tech Used ----------------- None Achievements -------------- Bob, First Of His Name Civilization 2243 Frankenstein Link The Feds Nice Directions, Buddy Omniscient Cartographer Plot Armor Sprinter Challenges ------------ None Game ------ Seed IntegrityFieldShielding Manual? 0 Play Time 01:20:54 Cumulative 7.1 hours Start 2026.09.21 @ 16:55:45 End 2026.09.21 @ 21:38:07 Sessions 9 Manual Loads 0 Difficulty Rogue Special Mode None Game No. 5 Rogue 5 Adventurer 0 Explorer 0 Win Type - Total 0 Types 0/0/0/0/0/0/0/0/0/0 Lore% 12 Gallery% 12 Achievement% 14 Wizard Run 0 Options --------- Layout 1 ASCII 0 Keyboard 0 Movement Mouse Keybinds 0 Fullscreen 0 Font 14/SmallcapsGlow Map View 59x39 Zoom Use 0% Tactical HUD 1 Map Filters NONE Filters NONE Steam X RUN: 06a4a1b6-80db-48e5-bcc2-120c8deac563